[Event "*** MasterClass Titled Tuesday Blitz"]
[Site "Chess.com"]
[Date "2017.07.04"]
[Round "3"]
[White "evgenysharapov"]
[Black "AaronGrabinsky_SPICE"]
[Result "1-0"]
[WhiteElo "2232"]
[BlackElo "2066"]
[TimeControl "180+2"]
[EndTime "13:36:35 PDT"]
[Termination "evgenysharapov won by resignation"]

1. e4 {[%clk 0:02:59.4]} 1... g6 {[%clk 0:02:59.2]} 2. d4 {[%clk 0:02:58.3]}
2... d6 {[%clk 0:03:00.3]} 3. Nc3 {[%clk 0:02:58.1]} 3... Bg7 {[%clk 0:03:01]}
4. f4 {[%clk 0:02:57.7]} 4... Nf6 {[%clk 0:02:57.1]} 5. Nf3 {[%clk 0:02:56.2]}
5... c5 {[%clk 0:02:58]} 6. dxc5 {[%clk 0:02:53.6]} 6... Qa5 {[%clk 0:02:56.5]}
7. Qd4 {[%clk 0:02:53.3]} 7... O-O {[%clk 0:02:44.9]} 8. cxd6 {[%clk 0:02:51.9]}
8... exd6 {[%clk 0:02:40.1]} 9. Qd2 {[%clk 0:02:51.1]} 9... Qb6 {[%clk
0:02:25.6]} 10. Bd3 {[%clk 0:02:49.4]} 10... Nc6 {[%clk 0:02:20.4]} 11. Qf2
{[%clk 0:02:42.2]} 11... Qb4 {[%clk 0:02:18.6]} 12. O-O {[%clk 0:02:31]} 12...
Re8 {[%clk 0:02:17.9]} 13. a3 {[%clk 0:02:16.2]} 13... Qa5 {[%clk 0:02:05.5]}
14. Bd2 {[%clk 0:02:13.6]} 14... Ng4 {[%clk 0:01:38.8]} 15. Qg3 {[%clk
0:02:03.3]} 15... Qb6+ {[%clk 0:01:39.2]} 16. Kh1 {[%clk 0:02:01.5]} 16... Nf6
{[%clk 0:01:35.6]} 17. Rab1 {[%clk 0:01:46.9]} 17... Bd7 {[%clk 0:01:23.6]} 18.
Qf2 {[%clk 0:01:32.1]} 18... Qc7 {[%clk 0:01:21.2]} 19. h3 {[%clk 0:01:28.2]}
19... a6 {[%clk 0:01:19.7]} 20. Rbe1 {[%clk 0:01:19.8]} 20... h6 {[%clk
0:00:52.3]} 21. e5 {[%clk 0:01:18.5]} 21... Nh7 {[%clk 0:00:53.9]} 22. Nd5
{[%clk 0:01:16.6]} 22... Qb8 {[%clk 0:00:53.2]} 23. Bc3 {[%clk 0:01:09.2]} 23...
dxe5 {[%clk 0:00:53.2]} 24. Nxe5 {[%clk 0:01:06.2]} 24... Nxe5 {[%clk 0:00:54]}
25. fxe5 {[%clk 0:01:04.6]} 25... Be6 {[%clk 0:00:55.6]} 26. Nf6+ {[%clk
0:00:57.2]} 26... Nxf6 {[%clk 0:00:53.9]} 27. exf6 {[%clk 0:00:54.9]} 27... Bf8
{[%clk 0:00:55.4]} 28. Bxg6 {[%clk 0:00:45.1]} 1-0

[Event "*** MasterClass Titled Tuesday Blitz"]
[Site "Chess.com"]
[Date "2017.07.04"]
[Round "3"]
[White "michaelk123"]
[Black "SovietCitizen"]
[Result "1-0"]
[WhiteElo "2270"]
[BlackElo "2244"]
[TimeControl "180+2"]
[EndTime "13:36:36 PDT"]
[Termination "michaelk123 won by checkmate"]

1. e4 {[%clk 0:03:01.9]} 1... e5 {[%clk 0:02:59.2]} 2. Nf3 {[%clk 0:03:02.4]}
2... Nc6 {[%clk 0:03:00.4]} 3. Bb5 {[%clk 0:03:03.3]} 3... Nf6 {[%clk
0:03:01.3]} 4. O-O {[%clk 0:02:58.3]} 4... Be7 {[%clk 0:02:58.1]} 5. Re1 {[%clk
0:02:52.6]} 5... O-O {[%clk 0:02:40]} 6. Bxc6 {[%clk 0:02:26.6]} 6... dxc6
{[%clk 0:02:39.8]} 7. Nxe5 {[%clk 0:02:27.5]} 7... Re8 {[%clk 0:02:40.4]} 8. d4
{[%clk 0:02:24.2]} 8... c5 {[%clk 0:02:40.8]} 9. c3 {[%clk 0:02:14.4]} 9... cxd4
{[%clk 0:02:40]} 10. cxd4 {[%clk 0:02:16.3]} 10... Bd6 {[%clk 0:02:40.3]} 11.
Bf4 {[%clk 0:02:14.2]} 11... c5 {[%clk 0:02:38.4]} 12. dxc5 {[%clk 0:02:05.3]}
12... Bxc5 {[%clk 0:02:37.4]} 13. Nc3 {[%clk 0:02:01.1]} 13... Be6 {[%clk
0:02:37.4]} 14. Bg5 {[%clk 0:01:40.3]} 14... h6 {[%clk 0:02:32]} 15. Bh4 {[%clk
0:01:30.4]} 15... Be7 {[%clk 0:02:31.9]} 16. Qf3 {[%clk 0:01:22.3]} 16... Qa5
{[%clk 0:02:31.2]} 17. Bg3 {[%clk 0:01:14.3]} 17... Rac8 {[%clk 0:02:30.2]} 18.
h3 {[%clk 0:01:12.7]} 18... Ba3 {[%clk 0:02:18.6]} 19. bxa3 {[%clk 0:00:57.6]}
19... Qxc3 {[%clk 0:02:18.2]} 20. Rab1 {[%clk 0:00:45]} 20... Bxa2 {[%clk
0:02:16]} 21. Qxc3 {[%clk 0:00:42.9]} 21... Rxc3 {[%clk 0:02:16.3]} 22. Rxb7
{[%clk 0:00:44.5]} 22... Rxg3 {[%clk 0:02:12.4]} 23. fxg3 {[%clk 0:00:37.2]}
23... Rxe5 {[%clk 0:02:12.7]} 24. Rxa7 {[%clk 0:00:38.6]} 24... Bc4 {[%clk
0:02:11.1]} 25. a4 {[%clk 0:00:34.8]} 25... Kf8 {[%clk 0:02:10.8]} 26. a5 {[%clk
0:00:31.8]} 26... Nxe4 {[%clk 0:02:11]} 27. a6 {[%clk 0:00:28.8]} 27... Ke8
{[%clk 0:02:11]} 28. Ra8+ {[%clk 0:00:22.8]} 28... Ke7 {[%clk 0:02:11.2]} 29. a7
{[%clk 0:00:23.9]} 29... Bd5 {[%clk 0:02:11.5]} 30. Rb8 {[%clk 0:00:22.3]} 30...
Kf6 {[%clk 0:02:11.6]} 31. Kh2 {[%clk 0:00:17.1]} 31... Re7 {[%clk 0:02:11.4]}
32. a8=Q {[%clk 0:00:16.6]} 32... Bxa8 {[%clk 0:02:07.2]} 33. Rxa8 {[%clk
0:00:18.5]} 33... g6 {[%clk 0:02:07.4]} 34. Ra4 {[%clk 0:00:17.5]} 34... Kf5
{[%clk 0:02:08]} 35. g4+ {[%clk 0:00:15.5]} 35... Kf4 {[%clk 0:02:08.6]} 36.
Rf1+ {[%clk 0:00:12.8]} 36... Ke3 {[%clk 0:02:09.2]} 37. Rf3+ {[%clk 0:00:13.4]}
37... Ke2 {[%clk 0:02:09.7]} 38. Ra2+ {[%clk 0:00:14.4]} 38... Nd2 {[%clk
0:02:08.8]} 39. Rc3 {[%clk 0:00:13.4]} 39... Rd7 {[%clk 0:02:04.2]} 40. Rf3
{[%clk 0:00:13.1]} 40... Kd1 {[%clk 0:02:04.7]} 41. Rf2 {[%clk 0:00:13.6]} 41...
g5 {[%clk 0:02:05]} 42. Rb2 {[%clk 0:00:11.7]} 42... Ne4 {[%clk 0:02:05.2]} 43.
Rf1# {[%clk 0:00:12]} 1-0

[Event "*** MasterClass Titled Tuesday Blitz"]
[Site "Chess.com"]
[Date "2017.07.04"]
[Round "3"]
[White "BilodeauA"]
[Black "Divertissement"]
[Result "1-0"]
[WhiteElo "2602"]
[BlackElo "2409"]
[TimeControl "180+2"]
[EndTime "13:36:39 PDT"]
[Termination "BilodeauA won by resignation"]

1. e4 {[%clk 0:03:01.9]} 1... c5 {[%clk 0:02:57.4]} 2. Nf3 {[%clk 0:03:02.6]}
2... Nc6 {[%clk 0:02:58.2]} 3. d4 {[%clk 0:03:03.9]} 3... cxd4 {[%clk
0:02:59.3]} 4. Nxd4 {[%clk 0:03:05.8]} 4... Qb6 {[%clk 0:02:59.8]} 5. Nb3 {[%clk
0:03:05.9]} 5... Nf6 {[%clk 0:03:00.7]} 6. Nc3 {[%clk 0:03:06]} 6... e6 {[%clk
0:03:02.1]} 7. Bd3 {[%clk 0:03:06.4]} 7... Be7 {[%clk 0:03:02.2]} 8. O-O {[%clk
0:03:05.1]} 8... a6 {[%clk 0:03:03.1]} 9. Be3 {[%clk 0:03:04.9]} 9... Qc7 {[%clk
0:03:04]} 10. f4 {[%clk 0:03:03.6]} 10... d6 {[%clk 0:03:05.2]} 11. Qf3 {[%clk
0:03:03.4]} 11... O-O {[%clk 0:02:55.5]} 12. g4 {[%clk 0:03:02.4]} 12... b5
{[%clk 0:02:48.1]} 13. a4 {[%clk 0:02:58.1]} 13... b4 {[%clk 0:02:46.1]} 14. Nd1
{[%clk 0:02:58.7]} 14... Bb7 {[%clk 0:02:42.7]} 15. Nf2 {[%clk 0:02:59.2]} 15...
g6 {[%clk 0:02:23.9]} 16. g5 {[%clk 0:02:57.5]} 16... Nh5 {[%clk 0:02:14.8]} 17.
Ng4 {[%clk 0:02:58.1]} 17... Kg7 {[%clk 0:01:48.7]} 18. Qh3 {[%clk 0:02:45]}
18... f5 {[%clk 0:01:29.8]} 19. gxf6+ {[%clk 0:02:40.7]} 19... Bxf6 {[%clk
0:01:30.2]} 20. f5 {[%clk 0:02:31.1]} 20... exf5 {[%clk 0:01:17.5]} 21. exf5
{[%clk 0:02:29.9]} 21... Ne5 {[%clk 0:01:08.1]} 22. Bh6+ {[%clk 0:02:14.7]}
22... Kg8 {[%clk 0:00:58.9]} 23. fxg6 {[%clk 0:02:08.4]} 23... Nxg4 {[%clk
0:00:49.3]} 24. Qxg4 {[%clk 0:01:34]} 24... Qc6 {[%clk 0:00:37.3]} 25. Qc4+
{[%clk 0:01:25.6]} 25... Qxc4 {[%clk 0:00:25.8]} 26. Bxc4+ {[%clk 0:01:25.1]}
26... d5 {[%clk 0:00:27.7]} 27. Be2 {[%clk 0:01:17.4]} 27... hxg6 {[%clk
0:00:25.9]} 28. Bxf8 {[%clk 0:01:18.1]} 28... Rxf8 {[%clk 0:00:27.2]} 29. Rad1
{[%clk 0:01:14]} 29... Kg7 {[%clk 0:00:20.5]} 30. Nc5 {[%clk 0:01:11.7]} 30...
Ba8 {[%clk 0:00:20.4]} 31. Ne6+ {[%clk 0:01:11.6]} 1-0

[Event "*** MasterClass Titled Tuesday Blitz"]
[Site "Chess.com"]
[Date "2017.07.04"]
[Round "3"]
[White "Andrjywa"]
[Black "FearlessKing64"]
[Result "1-0"]
[WhiteElo "2293"]
[BlackElo "2168"]
[TimeControl "180+2"]
[EndTime "13:36:40 PDT"]
[Termination "Andrjywa won by resignation"]

1. e4 {[%clk 0:03:01.9]} 1... c5 {[%clk 0:02:57.2]} 2. Nf3 {[%clk 0:03:02.3]}
2... d6 {[%clk 0:02:58.6]} 3. d4 {[%clk 0:03:03.8]} 3... cxd4 {[%clk 0:02:59.8]}
4. Nxd4 {[%clk 0:03:05.7]} 4... Nf6 {[%clk 0:03:01.2]} 5. Nc3 {[%clk 0:03:07]}
5... a6 {[%clk 0:03:02.4]} 6. Be3 {[%clk 0:03:07.5]} 6... e5 {[%clk 0:03:03.5]}
7. Nf3 {[%clk 0:03:08.2]} 7... h6 {[%clk 0:03:02.1]} 8. Bc4 {[%clk 0:03:08]}
8... Qc7 {[%clk 0:03:03.1]} 9. Bb3 {[%clk 0:03:04.8]} 9... Be7 {[%clk
0:03:04.2]} 10. Kf1 {[%clk 0:03:05.1]} 10... O-O {[%clk 0:03:04.2]} 11. Kg1
{[%clk 0:03:01.9]} 11... Be6 {[%clk 0:03:05.1]} 12. h3 {[%clk 0:02:49.4]} 12...
Bxb3 {[%clk 0:02:59.3]} 13. axb3 {[%clk 0:02:49.5]} 13... Qc6 {[%clk 0:02:59.2]}
14. Qd3 {[%clk 0:02:46.9]} 14... Nbd7 {[%clk 0:02:58.1]} 15. Kh2 {[%clk
0:02:45.6]} 15... Rad8 {[%clk 0:02:54.6]} 16. b4 {[%clk 0:02:40.9]} 16... Qc7
{[%clk 0:02:46.1]} 17. Rhd1 {[%clk 0:02:39.8]} 17... Nb6 {[%clk 0:02:41]} 18.
Bxb6 {[%clk 0:02:37]} 18... Qxb6 {[%clk 0:02:41.3]} 19. b5 {[%clk 0:02:22.9]}
19... axb5 {[%clk 0:02:29.5]} 20. Qxb5 {[%clk 0:02:23.1]} 20... Qxf2 {[%clk
0:02:22.1]} 21. Rd2 {[%clk 0:02:23.5]} 21... Qe3 {[%clk 0:02:14.4]} 22. Re1
{[%clk 0:02:12.7]} 22... Qf4+ {[%clk 0:02:13.6]} 23. Kg1 {[%clk 0:02:12.5]}
23... Rd7 {[%clk 0:01:52.7]} 24. Nd5 {[%clk 0:02:11.1]} 24... Nxd5 {[%clk
0:01:29]} 25. Qxd7 {[%clk 0:02:11.4]} 25... Bh4 {[%clk 0:01:26.8]} 26. Rxd5
{[%clk 0:01:45.2]} 26... Bxe1 {[%clk 0:01:26.3]} 27. Nxe1 {[%clk 0:01:45.4]}
27... Qxe4 {[%clk 0:01:18.8]} 28. Rd1 {[%clk 0:01:40.7]} 28... Qb4 {[%clk
0:00:53.4]} 29. Qxd6 {[%clk 0:01:37.5]} 29... Qxb2 {[%clk 0:00:54.2]} 30. Kh1
{[%clk 0:01:34.4]} 30... Ra8 {[%clk 0:00:44.7]} 31. Qd3 {[%clk 0:01:26.4]} 31...
Ra1 {[%clk 0:00:38.1]} 32. Rxa1 {[%clk 0:01:26.4]} 32... Qxa1 {[%clk 0:00:39]}
33. Qe4 {[%clk 0:01:27.3]} 33... Qc3 {[%clk 0:00:31]} 34. Kh2 {[%clk 0:01:27.4]}
34... g6 {[%clk 0:00:29.5]} 35. Nf3 {[%clk 0:01:24.9]} 35... f6 {[%clk
0:00:27.4]} 36. Qxg6+ {[%clk 0:01:24]} 1-0

[Event "*** MasterClass Titled Tuesday Blitz"]
[Site "Chess.com"]
[Date "2017.07.04"]
[Round "3"]
[White "improve_every_day"]
[Black "angieflynn"]
[Result "1-0"]
[WhiteElo "1960"]
[BlackElo "1738"]
[TimeControl "180+2"]
[EndTime "13:36:50 PDT"]
[Termination "improve_every_day won by checkmate"]

1. e4 {[%clk 0:03:01.9]} 1... e6 {[%clk 0:02:58.9]} 2. d4 {[%clk 0:03:02.5]}
2... d5 {[%clk 0:02:59.3]} 3. Nd2 {[%clk 0:03:03.9]} 3... Nf6 {[%clk 0:02:58.8]}
4. e5 {[%clk 0:03:04.6]} 4... Ne4 {[%clk 0:02:58.8]} 5. Bd3 {[%clk 0:02:52.1]}
5... Nxd2 {[%clk 0:02:57.3]} 6. Qxd2 {[%clk 0:02:52]} 6... c5 {[%clk 0:02:59.2]}
7. c3 {[%clk 0:02:52.9]} 7... Nc6 {[%clk 0:02:58.4]} 8. Ne2 {[%clk 0:02:53.5]}
8... Qb6 {[%clk 0:02:57.5]} 9. O-O {[%clk 0:02:49.2]} 9... Bd7 {[%clk
0:02:54.7]} 10. Kh1 {[%clk 0:02:41.4]} 10... cxd4 {[%clk 0:02:51.1]} 11. cxd4
{[%clk 0:02:40.4]} 11... Nxd4 {[%clk 0:02:49.6]} 12. Nxd4 {[%clk 0:02:41.3]}
12... Qxd4 {[%clk 0:02:49.6]} 13. Qe2 {[%clk 0:02:36.3]} 13... Qh4 {[%clk
0:02:37.2]} 14. Bb5 {[%clk 0:02:26.4]} 14... Qe7 {[%clk 0:02:30.4]} 15. Be3
{[%clk 0:02:17.5]} 15... Qb4 {[%clk 0:02:17.1]} 16. Bxd7+ {[%clk 0:02:10.3]}
16... Kxd7 {[%clk 0:02:17.7]} 17. a3 {[%clk 0:02:07.7]} 17... Qa5 {[%clk
0:02:10.9]} 18. b4 {[%clk 0:02:05.5]} 18... Qc7 {[%clk 0:02:08]} 19. Rfc1 {[%clk
0:02:04.4]} 19... Qxe5 {[%clk 0:02:07.5]} 20. Qb5+ {[%clk 0:02:04.8]} 20... Ke7
{[%clk 0:01:58.7]} 21. Qxb7+ {[%clk 0:02:00.5]} 21... Kf6 {[%clk 0:01:52.5]} 22.
Rc7 {[%clk 0:00:53.4]} 22... Bd6 {[%clk 0:01:45.1]} 23. Rxf7+ {[%clk 0:00:50.4]}
23... Kg6 {[%clk 0:01:45.5]} 24. g3 {[%clk 0:00:02.9]} 24... Qxa1+ {[%clk
0:01:44.5]} 25. Kg2 {[%clk 0:00:04.1]} 25... Qe5 {[%clk 0:01:40.7]} 26. h4
{[%clk 0:00:03.1]} 26... Rhf8 {[%clk 0:01:32.7]} 27. h5+ {[%clk 0:00:04]} 27...
Kxh5 {[%clk 0:01:27.9]} 28. Rxg7 {[%clk 0:00:05.9]} 28... Qe4+ {[%clk
0:01:22.9]} 29. Kh3 {[%clk 0:00:05]} 29... Rg8 {[%clk 0:01:13.8]} 30. Rxh7+
{[%clk 0:00:05.6]} 30... Kg6 {[%clk 0:01:08.2]} 31. Qf7# {[%clk 0:00:05.6]} 1-0

[Event "*** MasterClass Titled Tuesday Blitz"]
[Site "Chess.com"]
[Date "2017.07.04"]
[Round "3"]
[White "gena217"]
[Black "Adham_Fawzy"]
[Result "1-0"]
[WhiteElo "2476"]
[BlackElo "2402"]
[TimeControl "180+2"]
[EndTime "13:37:17 PDT"]
[Termination "gena217 won by checkmate"]

1. e4 {[%clk 0:03:01.9]} 1... c5 {[%clk 0:03:00.8]} 2. Nf3 {[%clk 0:03:02.7]}
2... Nc6 {[%clk 0:03:02.2]} 3. Bb5 {[%clk 0:03:02.5]} 3... g6 {[%clk 0:03:02.9]}
4. Bxc6 {[%clk 0:03:01.8]} 4... dxc6 {[%clk 0:03:03.8]} 5. d3 {[%clk 0:03:02.1]}
5... Bg7 {[%clk 0:03:04.6]} 6. h3 {[%clk 0:03:02.4]} 6... Nf6 {[%clk 0:03:05]}
7. Nc3 {[%clk 0:02:52.5]} 7... Nd7 {[%clk 0:03:05.1]} 8. Be3 {[%clk 0:02:52.6]}
8... e5 {[%clk 0:03:05.6]} 9. Qd2 {[%clk 0:02:52.7]} 9... h6 {[%clk 0:03:06.6]}
10. O-O {[%clk 0:02:44]} 10... Qe7 {[%clk 0:03:07.1]} 11. Nh2 {[%clk 0:02:44.3]}
11... Nf8 {[%clk 0:03:07.2]} 12. f4 {[%clk 0:02:44.1]} 12... exf4 {[%clk
0:03:08.2]} 13. Rxf4 {[%clk 0:02:44.5]} 13... Be6 {[%clk 0:03:08.8]} 14. Raf1
{[%clk 0:02:43.5]} 14... Nd7 {[%clk 0:03:01.6]} 15. R4f2 {[%clk 0:02:29.9]}
15... O-O-O {[%clk 0:02:59.7]} 16. Ng4 {[%clk 0:02:30.2]} 16... Bxg4 {[%clk
0:02:40.9]} 17. Rxf7 {[%clk 0:02:30]} 17... Qe6 {[%clk 0:02:35.4]} 18. Rxg7
{[%clk 0:02:24.8]} 18... Bh5 {[%clk 0:02:21.8]} 19. Bxh6 {[%clk 0:02:06.8]}
19... Ne5 {[%clk 0:02:12.7]} 20. Bg5 {[%clk 0:02:01.1]} 20... Rdf8 {[%clk
0:02:01]} 21. Rxf8+ {[%clk 0:02:00.3]} 21... Rxf8 {[%clk 0:02:01]} 22. d4 {[%clk
0:01:46.6]} 22... Nf7 {[%clk 0:01:48.9]} 23. Be3 {[%clk 0:01:27.1]} 23... Nd6
{[%clk 0:01:12.3]} 24. dxc5 {[%clk 0:01:11.3]} 24... Nc4 {[%clk 0:01:11.9]} 25.
Qe1 {[%clk 0:00:53.7]} 25... Qf6 {[%clk 0:01:08.1]} 26. Rh7 {[%clk 0:00:50.7]}
26... Nxe3 {[%clk 0:00:15.5]} 27. Qxe3 {[%clk 0:00:52.6]} 27... Qf1+ {[%clk
0:00:10.7]} 28. Kh2 {[%clk 0:00:53.1]} 28... Rf2 {[%clk 0:00:08.1]} 29. Qg3
{[%clk 0:00:53.5]} 29... Bf3 {[%clk 0:00:08.1]} 30. Qc7# {[%clk 0:00:53.4]} 1-0

[Event "*** MasterClass Titled Tuesday Blitz"]
[Site "Chess.com"]
[Date "2017.07.04"]
[Round "3"]
[White "latigre"]
[Black "escher"]
[Result "1-0"]
[WhiteElo "1774"]
[BlackElo "2019"]
[TimeControl "180+2"]
[EndTime "13:37:17 PDT"]
[Termination "latigre won by resignation"]

1. e4 {[%clk 0:02:42]} 1... c5 {[%clk 0:03:00.9]} 2. Nc3 {[%clk 0:02:34.8]} 2...
Nc6 {[%clk 0:03:00]} 3. f4 {[%clk 0:02:36.7]} 3... g6 {[%clk 0:03:00.1]} 4. Nf3
{[%clk 0:02:34.2]} 4... Bg7 {[%clk 0:03:01]} 5. Bb5 {[%clk 0:02:35.5]} 5... Nd4
{[%clk 0:02:34.1]} 6. a4 {[%clk 0:02:32.8]} 6... a6 {[%clk 0:02:31.3]} 7. Bc4
{[%clk 0:02:30.8]} 7... Nf6 {[%clk 0:02:16.1]} 8. d3 {[%clk 0:02:22.9]} 8...
Nxf3+ {[%clk 0:01:58.9]} 9. Qxf3 {[%clk 0:02:21.4]} 9... O-O {[%clk 0:01:57.7]}
10. O-O {[%clk 0:02:21.3]} 10... d6 {[%clk 0:01:58.4]} 11. Ne2 {[%clk
0:02:15.7]} 11... Bg4 {[%clk 0:01:56.9]} 12. Qf2 {[%clk 0:02:15.6]} 12... d5
{[%clk 0:01:45.3]} 13. Bb3 {[%clk 0:02:10.9]} 13... dxe4 {[%clk 0:01:43.7]} 14.
h3 {[%clk 0:02:03.1]} 14... exd3 {[%clk 0:01:29.7]} 15. hxg4 {[%clk 0:02:00.8]}
15... Ne4 {[%clk 0:01:22]} 16. Qe3 {[%clk 0:01:48.6]} 16... dxe2 {[%clk
0:01:23]} 17. Qxe4 {[%clk 0:01:46.4]} 17... exf1=Q+ {[%clk 0:01:16.4]} 18. Kxf1
{[%clk 0:01:48.3]} 18... Qd1+ {[%clk 0:01:16.1]} 19. Kf2 {[%clk 0:01:49.1]}
19... Bd4+ {[%clk 0:01:13.9]} 20. Kg3 {[%clk 0:01:49.3]} 20... Rad8 {[%clk
0:01:02.5]} 21. f5 {[%clk 0:01:42.4]} 21... Qf1 {[%clk 0:00:55.3]} 22. fxg6
{[%clk 0:01:39.7]} 22... Qf2+ {[%clk 0:00:54.6]} 23. Kh3 {[%clk 0:01:39.4]}
23... e6 {[%clk 0:00:27.5]} 24. gxf7+ {[%clk 0:00:55.6]} 24... Rxf7 {[%clk
0:00:23.1]} 25. Bxe6 {[%clk 0:00:52.6]} 25... Rd6 {[%clk 0:00:21.2]} 26. Bxf7+
{[%clk 0:00:49.4]} 26... Qxf7 {[%clk 0:00:20]} 27. Bg5 {[%clk 0:00:45.4]} 27...
Re6 {[%clk 0:00:20.4]} 28. Qf3 {[%clk 0:00:44.4]} 28... Qg6 {[%clk 0:00:20.1]}
29. Bh4 {[%clk 0:00:40.9]} 29... Be5 {[%clk 0:00:19.8]} 30. Qxb7 {[%clk
0:00:38.9]} 30... Qxc2 {[%clk 0:00:19.2]} 31. Qc8+ {[%clk 0:00:39.4]} 31... Kf7
{[%clk 0:00:20.2]} 32. Rf1+ {[%clk 0:00:39.7]} 32... Bf6 {[%clk 0:00:20.1]} 33.
Qd7+ {[%clk 0:00:40.1]} 33... Re7 {[%clk 0:00:21.2]} 34. Rxf6+ {[%clk
0:00:40.4]} 34... Kg8 {[%clk 0:00:21.5]} 35. Qxe7 {[%clk 0:00:39.8]} 35... Qd3+
{[%clk 0:00:22.5]} 36. Rf3 {[%clk 0:00:39.9]} 1-0

[Event "*** MasterClass Titled Tuesday Blitz"]
[Site "Chess.com"]
[Date "2017.07.04"]
[Round "3"]
[White "dolynachess"]
[Black "dretch"]
[Result "0-1"]
[WhiteElo "2329"]
[BlackElo "2532"]
[TimeControl "180+2"]
[EndTime "13:37:21 PDT"]
[Termination "dretch won by checkmate"]

1. c4 {[%clk 0:03:01.9]} 1... c6 {[%clk 0:02:58.9]} 2. b3 {[%clk 0:02:47]} 2...
d5 {[%clk 0:02:57.6]} 3. Bb2 {[%clk 0:02:40.9]} 3... Bg4 {[%clk 0:02:58.4]} 4.
Nf3 {[%clk 0:02:28.6]} 4... Bxf3 {[%clk 0:02:57.9]} 5. gxf3 {[%clk 0:02:29.6]}
5... e6 {[%clk 0:02:47.8]} 6. e3 {[%clk 0:02:26.8]} 6... Nf6 {[%clk 0:02:47.7]}
7. d3 {[%clk 0:02:20.8]} 7... Qa5+ {[%clk 0:02:33.1]} 8. Nd2 {[%clk 0:02:18.9]}
8... Ba3 {[%clk 0:02:32.1]} 9. Qc1 {[%clk 0:02:10.6]} 9... Bxb2 {[%clk
0:02:29.8]} 10. Qxb2 {[%clk 0:02:12.4]} 10... Nbd7 {[%clk 0:02:20.4]} 11. f4
{[%clk 0:02:10.7]} 11... O-O {[%clk 0:02:08]} 12. Be2 {[%clk 0:02:05.8]} 12...
Rfe8 {[%clk 0:02:06.9]} 13. O-O {[%clk 0:01:58.6]} 13... e5 {[%clk 0:02:07.6]}
14. fxe5 {[%clk 0:01:53.8]} 14... Nxe5 {[%clk 0:02:08.3]} 15. Nf3 {[%clk
0:01:45.3]} 15... Ned7 {[%clk 0:01:53]} 16. Kh1 {[%clk 0:01:42.2]} 16... Ng4
{[%clk 0:01:47.3]} 17. Nd4 {[%clk 0:01:27.4]} 17... h5 {[%clk 0:01:39]} 18. Nf5
{[%clk 0:00:47.9]} 18... Re5 {[%clk 0:01:38.8]} 19. Nxg7 {[%clk 0:00:35.2]}
19... dxc4 {[%clk 0:00:25.8]} 20. bxc4 {[%clk 0:00:27.8]} 20... Ndf6 {[%clk
0:00:21.8]} 21. d4 {[%clk 0:00:10.4]} 21... Rg5 {[%clk 0:00:20.4]} 22. Qxb7
{[%clk 0:00:10.7]} 22... Rf8 {[%clk 0:00:20.9]} 23. Qxc6 {[%clk 0:00:09.9]}
23... Rxg7 {[%clk 0:00:21.7]} 24. Qf3 {[%clk 0:00:07.3]} 24... Qc7 {[%clk
0:00:21.8]} 25. Qg3 {[%clk 0:00:06.5]} 25... Ne4 {[%clk 0:00:22.6]} 26. Qxc7
{[%clk 0:00:06.7]} 26... Ngxf2+ {[%clk 0:00:23.6]} 27. Rxf2 {[%clk 0:00:06.1]}
27... Nxf2# {[%clk 0:00:24.8]} 0-1

[Event "*** MasterClass Titled Tuesday Blitz"]
[Site "Chess.com"]
[Date "2017.07.04"]
[Round "3"]
[White "SergeiAza"]
[Black "PlotnikovPavel"]
[Result "1-0"]
[WhiteElo "2712"]
[BlackElo "2461"]
[TimeControl "180+2"]
[EndTime "13:37:37 PDT"]
[Termination "SergeiAza won by resignation"]

1. e4 {[%clk 0:03:01.9]} 1... e6 {[%clk 0:03:00.3]} 2. d4 {[%clk 0:03:01.7]}
2... d5 {[%clk 0:03:01.5]} 3. Nd2 {[%clk 0:03:01.8]} 3... Be7 {[%clk 0:03:01.8]}
4. Ngf3 {[%clk 0:02:56.6]} 4... Nf6 {[%clk 0:03:00.5]} 5. e5 {[%clk 0:02:54.9]}
5... Nfd7 {[%clk 0:03:01.8]} 6. Bd3 {[%clk 0:02:56.4]} 6... c5 {[%clk 0:03:03]}
7. c3 {[%clk 0:02:58]} 7... Nc6 {[%clk 0:03:04.4]} 8. O-O {[%clk 0:02:58.7]}
8... cxd4 {[%clk 0:03:05.2]} 9. cxd4 {[%clk 0:02:58.8]} 9... Qb6 {[%clk
0:03:06.6]} 10. Nb3 {[%clk 0:02:59.4]} 10... a5 {[%clk 0:03:08]} 11. a4 {[%clk
0:03:00.1]} 11... Nb4 {[%clk 0:03:05.7]} 12. Bb5 {[%clk 0:02:56.8]} 12... O-O
{[%clk 0:03:02.1]} 13. Bg5 {[%clk 0:02:54.2]} 13... Qd8 {[%clk 0:02:48.6]} 14.
h4 {[%clk 0:02:44.3]} 14... h6 {[%clk 0:02:48.4]} 15. Bxe7 {[%clk 0:02:43.8]}
15... Qxe7 {[%clk 0:02:50.3]} 16. Rc1 {[%clk 0:02:37.9]} 16... Nb8 {[%clk
0:02:48.4]} 17. Nc5 {[%clk 0:02:23.2]} 17... b6 {[%clk 0:02:44.8]} 18. Nd3
{[%clk 0:02:22.4]} 18... Ba6 {[%clk 0:02:43.9]} 19. Nxb4 {[%clk 0:02:20.6]}
19... Qxb4 {[%clk 0:02:41.5]} 20. Qd2 {[%clk 0:02:04.8]} 20... Bxb5 {[%clk
0:02:21.1]} 21. Qxb4 {[%clk 0:02:04.6]} 21... axb4 {[%clk 0:02:22.3]} 22. axb5
{[%clk 0:02:06.1]} 22... Ra5 {[%clk 0:02:23.6]} 23. Rc7 {[%clk 0:02:03.4]} 23...
Rxb5 {[%clk 0:02:23.7]} 24. Rfc1 {[%clk 0:01:52.2]} 24... Na6 {[%clk 0:02:17.3]}
25. Rb7 {[%clk 0:01:49.1]} 25... Ra5 {[%clk 0:00:59]} 26. Rxb6 {[%clk
0:01:42.4]} 26... Ra2 {[%clk 0:00:59.7]} 27. h5 {[%clk 0:01:30.2]} 27... Ra8
{[%clk 0:00:56.2]} 28. Rcc6 {[%clk 0:01:26.4]} 28... Kh7 {[%clk 0:00:38]} 29. g4
{[%clk 0:01:22.4]} 29... Ra7 {[%clk 0:00:33.9]} 30. Kg2 {[%clk 0:01:13.5]} 30...
Nc7 {[%clk 0:00:34.3]} 31. Rxb4 {[%clk 0:01:11]} 31... R2a6 {[%clk 0:00:27.7]}
32. Rxa6 {[%clk 0:01:05.5]} 32... Rxa6 {[%clk 0:00:28.3]} 33. Rb7 {[%clk
0:01:05.9]} 33... Rc6 {[%clk 0:00:29.5]} 34. b4 {[%clk 0:01:01.1]} 34... Kg8
{[%clk 0:00:23.6]} 35. b5 {[%clk 0:00:59.7]} 35... Rc2 {[%clk 0:00:24.8]} 36. b6
{[%clk 0:00:55.8]} 36... Ne8 {[%clk 0:00:24.1]} 37. Rd7 {[%clk 0:00:48.1]} 37...
Kf8 {[%clk 0:00:23]} 38. b7 {[%clk 0:00:47.8]} 38... Rb2 {[%clk 0:00:24.4]} 39.
g5 {[%clk 0:00:48.3]} 1-0